bitfinex/quotes_ETHUSD_20251206
["timestamp","ask_amount","ask_price","bid_price","bid_amount"]
[1765000368897,0.44951441,3042.2,3042.1,1.3084332]
[1765000370139,0.94731441,3042.2,3041.9,0.4685]
[1765000370298,0.8217332,3042.1,3042.0,0.98716845]
[1765000370807,0.09937857,3041.6,3041.3,0.519]
[1765000371008,0.92111177,3041.6,3041.3,0.519]
[1765000371203,0.92111177,3041.6,3041.3,0.9875]
[1765000371410,0.4978,3041.4,3041.3,0.519]
[1765000371645,0.59717857,3041.4,3041.3,0.519]
[1765000372006,0.4978,3041.4,3041.3,0.519]
[1765000374928,0.09937857,3041.5,3041.3,0.9803]
[1765000375102,0.92111177,3041.6,3041.3,0.9803]
[1765000376131,0.9323332,3041.4,3041.3,0.519]
[1765000377533,0.09937857,3041.5,3041.3,0.9803]
[1765000377734,0.92111177,3041.6,3041.3,1.4355]
[1765000378303,0.92111177,3041.6,3041.3,0.9803]
[1765000378630,0.8217332,3041.6,3041.5,0.4613]
[1765000379839,0.8217332,3041.6,3041.3,0.519]
[1765000379840,0.9316332,3041.6,3041.3,0.519]
[1765000380139,0.9316332,3041.6,3041.3,0.9742]
[1765000380932,0.8217332,3041.8,3041.5,0.4613]
[1765000381117,1.54732731,3041.9,3041.7,0.4613]
[1765000381319,0.17341699,3041.8,3041.7,0.4613]
[1765000387013,0.17341699,3041.8,3041.5,0.4552]
[1765000387839,0.17341699,3041.8,3041.0,0.001]
[1765000387840,0.09937857,3041.5,3041.0,0.001]
[1765000388047,0.92381177,3041.4,3041.2,0.519]
[1765000391038,0.92381177,3041.4,3041.0,1.44356664]
[1765000391242,0.92381177,3041.4,3041.1,0.9894]
[1765000391538,0.8217332,3041.4,3041.3,0.4873]
[1765000393237,0.09937857,3041.6,3041.3,0.9577]
[1765000393437,0.8217332,3041.5,3041.4,0.4873]
[1765000393945,0.8217332,3041.5,3041.1,0.9894]
[1765000394146,0.8217332,3041.5,3041.2,0.4704]
[1765000394843,0.09937857,3041.4,3041.1,0.519]
[1765000395051,0.075,3041.2,3041.1,0.519]
[1765000395345,1.32478573,3041.5,3041.3,0.4873]
[1765000395346,1.4241643,3041.5,3041.3,0.4873]
[1765000395643,1.32478573,3041.5,3041.4,0.4873]
[1765000397454,1.32478573,3041.5,3041.2,0.4704]
[1765000398025,1.4241643,3041.5,3041.1,0.519]
[1765000398228,1.9172643,3041.5,3041.1,0.519]
[1765000398453,1.4241643,3041.5,3041.1,0.9894]
[1765000398754,1.4241643,3041.5,3041.1,0.519]
[1765000399051,1.4241643,3041.5,3041.2,0.4704]
[1765000400623,1.39541177,3041.3,3041.1,0.519]
[1765000400827,0.0009,3041.2,3041.1,0.519]
[1765000401143,0.92111177,3041.3,3041.1,0.519]
[1765000401337,0.8217332,3041.3,3041.1,0.519]
[1765000401539,0.8217332,3041.3,3041.2,0.4873]
[1765000401854,0.8217332,3041.3,3041.2,1.0063]
[1765000403150,0.8967332,3041.3,3041.2,0.519]
[1765000403352,1.49656447,3041.3,3041.2,0.519]
[1765000403652,0.09937857,3041.2,3041.0,0.52]
[1765000403831,0.8266332,3041.1,3041.0,0.52]
[1765000405258,0.8217332,3041.3,3041.0,1.4777]
[1765000405458,0.8217332,3041.3,3041.2,0.4873]
[1765000405659,1.36517339,3041.3,3041.2,0.4873]
[1765000406051,1.36517339,3041.3,3041.0,0.9904]
[1765000408133,0.8967332,3041.1,3041.0,0.001]
[1765000409768,0.8217332,3041.1,3041.0,0.001]
[1765000411353,0.9008332,3041.1,3041.0,0.001]
[1765000416068,1.48501177,3041.1,3041.0,0.001]
[1765000416269,2.10905179,3041.1,3041.0,0.001]
[1765000416634,5.49733563,3041.1,3041.0,0.001]
[1765000416834,4.87329561,3041.1,3041.0,0.001]
[1765000419747,0.92111177,3041.1,3041.0,0.4893]
[1765000419942,0.8217332,3041.1,3041.0,0.9863]
[1765000420567,0.8217332,3041.1,3041.0,0.4893]
[1765000420764,1.4682005,3041.1,3041.0,0.4893]
[1765000422166,1.4682005,3041.1,3041.0,0.9863]
[1765000422342,0.8217332,3041.1,3041.0,0.9863]
[1765000423094,0.8217332,3041.1,3041.0,0.4893]
[1765000423438,4.77349561,3041.1,3041.0,0.001]
[1765000423643,4.87349561,3041.1,3041.0,0.001]
[1765000425872,1.11821177,3041.1,3041.0,0.001]
[1765000426287,1.01821177,3041.1,3041.0,0.001]
[1765000426648,0.8217332,3041.1,3041.0,0.4893]
[1765000426942,0.8217332,3041.1,3041.0,0.9863]
[1765000427143,1.81060177,3041.1,3041.0,0.001]
[1765000427363,1.90998034,3041.1,3041.0,0.001]
[1765000427558,1.41448034,3041.1,3041.0,0.4893]
[1765000428547,1.90578034,3041.1,3041.0,0.001]
[1765000428780,1.98258034,3041.1,3041.0,0.001]
[1765000428991,2.08258034,3041.1,3041.0,0.001]
[1765000429790,2.00578034,3041.1,3041.0,0.001]
[1765000430878,1.90578034,3041.1,3041.0,0.001]
[1765000432770,1.31510177,3041.1,3041.0,0.4965]
[1765000432950,0.8237332,3041.1,3041.0,0.9921]
[1765000433680,0.8237332,3041.1,3041.0,0.4965]
[1765000443162,4.87559561,3041.1,3041.0,0.001]
[1765000444267,4.40919561,3041.1,3041.0,0.001]
[1765000444467,5.26129707,3041.1,3041.0,0.001]
[1765000444874,2.59860734,3041.1,3041.0,0.001]
[1765000445057,1.48731177,3041.1,3041.0,0.001]
[1765000445252,4.77559561,3041.1,3041.0,0.001]
[1765000445458,5.50118972,3041.1,3041.0,0.001]
[1765000445654,5.60118972,3041.1,3041.0,0.001]
[1765000457189,5.60118972,3041.1,3041.0,0.9347]
[1765000457190,0.72759411,3041.1,3041.0,0.9347]
[1765000461074,1.54932731,3041.1,3041.0,0.9347]
[1765000462097,1.64870588,3041.1,3041.0,0.456]
[1765000464794,4.93698972,3041.1,3041.0,0.456]
[1765000467304,5.05348972,3041.1,3041.0,0.001]
[1765000467806,4.93698972,3041.1,3041.0,0.001]
[1765000468126,4.93698972,3041.1,3041.0,0.456]
[1765000468401,4.93698972,3041.1,3041.0,0.9347]
[1765000469005,4.93698972,3041.1,3041.0,0.456]
[1765000470371,4.93698972,3041.1,3041.0,0.9347]
[1765000471188,4.83761115,3041.1,3041.0,0.9347]
[1765000471389,1.54932731,3041.1,3041.0,0.9347]
[1765000472199,4.83761115,3041.1,3041.0,0.9347]
[1765000475307,4.11201704,3041.1,3041.0,0.9347]
[1765000479311,5.69807926,3041.1,3041.0,0.001]
[1765000479989,5.24347926,3041.1,3041.0,0.001]
[1765000484301,5.69807926,3041.1,3041.0,0.001]
[1765000484505,5.24347926,3041.1,3041.0,0.001]
[1765000486725,5.14347926,3041.1,3041.0,0.001]
[1765000492226,5.03377926,3041.1,3041.0,0.001]
[1765000492403,5.03377926,3041.1,3041.0,0.4612]
[1765000492603,4.93440069,3041.1,3041.0,0.4612]
[1765000492814,4.93440069,3041.1,3041.0,0.9465]
[1765000493932,4.93440069,3041.1,3041.0,0.4612]
[1765000494308,4.93440069,3041.1,3041.0,0.9328]
[1765000494614,4.93440069,3041.1,3041.0,0.001]
[1765000494805,5.11417926,3041.1,3041.0,0.001]
[1765000502716,5.59777926,3041.1,3041.0,0.001]
[1765000503128,6.11777926,3041.1,3041.0,0.001]
[1765000504917,6.21777926,3041.1,3041.0,0.001]
[1765000505114,6.94337337,3041.1,3041.0,0.001]
[1765000508046,6.45977337,3041.1,3041.0,0.001]
[1765000510323,6.37937337,3041.1,3041.0,0.001]
[1765000510542,6.48697337,3041.1,3041.0,0.001]
[1765000510845,6.94357337,3041.1,3041.0,0.001]
[1765000514024,6.48697337,3041.1,3041.0,0.001]
[1765000514238,6.94357337,3041.1,3041.0,0.001]
[1765000521932,6.48697337,3041.1,3041.0,0.001]
[1765000522646,6.37937337,3041.1,3041.0,0.4835]
[1765000523044,6.37937337,3041.1,3041.0,0.9834]
[1765000523229,6.37937337,3041.1,3041.0,0.4835]
[1765000525338,2.99108953,3041.1,3041.0,0.9834]
[1765000525755,6.27937337,3041.1,3041.0,0.9834]
[1765000526156,6.37937337,3041.1,3041.0,0.4835]
[1765000532166,1.64870588,3041.1,3041.0,0.4835]
[1765000532370,1.64870588,3041.1,3041.0,0.9834]
[1765000536268,4.93698972,3041.1,3041.0,0.4835]
[1765000536473,5.03698972,3041.1,3041.0,0.4835]
[1765000540246,4.93698972,3041.1,3041.0,0.001]
[1765000540453,6.55606215,3041.1,3041.0,0.001]
[1765000540868,6.09516215,3041.1,3041.0,0.001]
[1765000542881,5.99186215,3041.1,3041.0,0.001]
[1765000543082,5.99186215,3041.1,3041.0,0.4696]
[1765000543261,5.03698972,3041.1,3041.0,0.4696]
[1765000546476,4.93698972,3041.1,3041.0,0.4696]
[1765000546683,4.93698972,3041.1,3041.0,0.9408]
[1765000549981,4.93698972,3041.1,3041.0,0.4696]
[1765000550187,5.41118972,3041.1,3041.0,0.001]
[1765000550388,6.43285215,3041.1,3041.0,0.001]
[1765000551087,5.95865215,3041.1,3041.0,0.4696]
[1765000553775,4.93698972,3041.1,3041.0,0.4696]
[1765000555391,5.03698972,3041.1,3041.0,0.4696]
[1765000557491,5.11858972,3041.1,3041.0,0.001]
[1765000559089,5.03698972,3041.1,3041.0,0.4658]
[1765000559472,4.93698972,3041.1,3041.0,0.4658]
[1765000559673,4.93698972,3041.1,3041.0,0.9185]
[1765000560467,0.10137857,3041.1,3041.0,0.9185]
[1765000560789,0.002,3041.1,3041.0,0.9185]
[1765000560994,0.002,3041.1,3041.0,1.4375]
[1765000561164,0.002,3041.1,3041.0,5.20179035]
[1765000561488,0.002,3041.1,3041.0,12.03182264]
[1765000563280,0.002,3041.1,3041.0,6.18909525]
[1765000567900,0.002,3041.1,3041.0,5.67009525]
[1765000568106,0.002,3041.1,3041.0,5.71219687]
[1765000576912,0.002,3041.1,3041.0,1.9711049]
[1765000577113,0.002,3041.1,3041.0,0.9838]
[1765000578239,0.002,3041.1,3041.0,4.27219197]
[1765000578786,0.002,3041.1,3041.0,4.73669197]
[1765000580923,0.002,3041.1,3041.0,0.9838]
[1765000582830,0.002,3041.1,3041.0,1.4483]
[1765000583016,0.002,3041.1,3041.0,0.9838]
[1765000586028,0.092,3041.1,3041.0,0.001]
[1765000586204,0.002,3041.1,3041.0,0.519]
[1765000587412,0.092,3041.1,3041.0,0.519]
[1765000587617,0.51238031,3041.1,3041.0,0.519]
[1765000588841,0.61175888,3041.1,3041.0,0.519]
[1765000589144,1.08045888,3041.1,3041.0,0.519]
[1765000589915,0.61175888,3041.1,3041.0,0.519]
[1765000590112,4.36874272,3041.1,3041.0,0.001]
[1765000590313,4.46874272,3041.1,3041.0,0.001]
[1765000590536,5.45637265,3041.1,3041.0,0.001]
[1765000591542,6.18196676,3041.1,3041.0,0.001]
[1765000591706,7.00369996,3041.1,3041.0,0.001]
[1765000602537,12.84836135,3041.1,3041.0,0.001]
[1765000610614,12.37966135,3041.1,3041.0,0.001]
[1765000610815,12.84836135,3041.1,3041.0,0.001]
[1765000613746,12.37966135,3041.1,3041.0,0.001]
[1765000614136,12.84836135,3041.1,3041.0,0.001]
[1765000614647,6.44499996,3041.1,3041.0,0.4892]
[1765000614824,5.03698972,3041.1,3041.0,0.9576]
[1765000615823,5.03698972,3041.1,3041.0,0.4892]
[1765000616018,5.03698972,3041.1,3041.0,0.001]
[1765000616019,10.88165111,3041.1,3041.0,0.001]
[1765000616218,13.2685233,3041.1,3041.0,0.001]
[1765000616434,13.7369233,3041.1,3041.0,0.001]
[1765000619831,13.2683233,3041.1,3041.0,0.001]
[1765000620139,7.33356191,3041.1,3041.0,0.4892]
[1765000620859,7.33356191,3041.1,3041.0,0.001]
[1765000621735,7.42366191,3041.1,3041.0,0.001]
[1765000622537,7.33356191,3041.1,3041.0,0.001]
[1765000624359,13.7369233,3041.1,3041.0,0.001]
[1765000625557,14.1424273,3041.1,3041.0,0.001]
[1765000625780,19.98708869,3041.1,3041.0,0.001]
[1765000625958,22.38662646,3041.1,3041.0,0.001]
[1765000626754,20.38662646,3041.1,3041.0,0.001]
[1765000626962,22.38662646,3041.1,3041.0,0.001]
[1765000630958,2.60488257,3040.4,3040.3,0.001]
[1765000631257,9.79223807,3040.4,3040.3,0.001]
[1765000631565,10.38706933,3040.4,3040.3,0.001]
[1765000632839,11.67611024,3040.4,3040.3,0.001]
[1765000633040,13.67611024,3040.4,3040.3,0.001]
[1765000633241,15.39126386,3040.4,3040.3,0.001]
[1765000633848,14.92816386,3040.4,3040.3,0.001]
[1765000634047,12.92816386,3040.4,3040.3,0.001]
[1765000635771,13.39126386,3040.4,3040.3,0.001]
[1765000642280,6.46640247,3040.4,3040.3,0.4654]
[1765000642447,4.34574485,3040.4,3040.3,0.9188]
[1765000643141,10.19040624,3040.4,3040.3,0.4654]
[1765000643371,11.15821024,3040.4,3040.3,0.001]
[1765000643576,13.15821024,3040.4,3040.3,0.001]
[1765000643774,14.88509718,3040.4,3040.3,0.001]
[1765000643974,14.42559718,3040.4,3040.3,0.001]
[1765000648251,14.88509718,3040.4,3040.3,0.001]
[1765000649593,14.88709718,3040.4,3040.3,0.001]
[1765000652891,20.73175857,3040.4,3040.3,0.001]
[1765000653190,14.88709718,3040.4,3040.3,0.001]
[1765000653558,14.94659718,3040.4,3040.3,0.001]
[1765000654369,15.40609718,3040.4,3040.3,0.001]
[1765000654985,14.94659718,3040.4,3040.3,0.001]
[1765000655404,15.40609718,3040.4,3040.3,0.001]
[1765000660088,14.94659718,3040.4,3040.3,0.001]
[1765000660397,14.84379718,3040.4,3040.3,0.4855]
[1765000660697,12.84379718,3040.4,3040.3,0.9771]
[1765000661000,6.07463179,3040.4,3040.3,0.9771]
[1765000661169,4.34774485,3040.4,3040.3,0.9771]
[1765000665213,4.21601359,3040.4,3040.3,0.9771]
[1765000679411,4.11601359,3040.4,3040.3,0.9771]
[1765000681115,4.21601359,3040.4,3040.3,0.9771]
[1765000682514,4.71240937,3040.4,3040.3,0.4855]
[1765000685500,4.71240937,3040.4,3040.3,0.9594]
[1765000686315,4.71240937,3040.4,3040.3,0.4855]
[1765000688488,4.71240937,3040.4,3040.3,0.001]
[1765000688684,4.77970937,3040.4,3040.3,0.001]
[1765000689309,5.26370937,3040.4,3040.3,0.001]
[1765000690099,4.77970937,3040.4,3040.3,0.001]
[1765000690300,7.78270937,3040.4,3040.3,0.001]
[1765000690615,8.18821337,3040.4,3040.3,0.001]
[1765000690825,5.23140937,3040.4,3040.3,0.001]
[1765000691210,5.30810937,3040.4,3040.3,0.001]
[1765000698125,5.78800937,3040.4,3040.3,0.001]
[1765000705839,6.19351337,3040.4,3040.3,0.001]
[1765000707139,5.63691337,3040.4,3040.3,0.4768]
[1765000707315,5.63691337,3040.4,3040.3,0.9641]
[1765000707947,5.23140937,3040.4,3040.3,0.9641]
[1765000715319,4.21601359,3040.4,3040.3,0.9641]
[1765000719944,4.21601359,3040.4,3040.3,0.95868]
[1765000720547,4.21601359,3040.4,3040.3,0.47138]
[1765000720729,0.19937857,3040.0,3039.9,0.001]
[1765000721120,0.19937857,3040.0,3039.9,0.4688]
[1765000721453,0.19937857,3040.0,3039.9,0.9343]
[1765000722252,3.48885225,3040.0,3039.9,0.9343]
[1765000724648,3.38885225,3040.0,3039.9,0.9343]
[1765000724843,3.28947368,3040.0,3039.9,0.9343]
[1765000740868,3.28947368,3040.0,3039.9,0.4688]
[1765000741060,3.48885225,3040.0,3039.9,0.001]
[1765000741837,4.3298468,3040.0,3039.9,0.001]
[1765000742033,6.11228,3040.0,3039.9,0.001]
[1765000743976,5.62278,3040.0,3039.9,0.001]
[1765000745082,6.11228,3040.0,3039.9,0.001]
[1765000746970,6.83787411,3040.0,3039.9,0.001]
[1765000752077,6.83107411,3040.0,3039.9,0.001]
[1765000752477,7.23657811,3040.0,3039.9,0.001]
[1765000752671,9.23657811,3040.0,3039.9,0.001]
[1765000756575,7.23657811,3040.0,3039.9,0.001]
[1765000756775,9.23657811,3040.0,3039.9,0.001]
[1765000770864,7.23657811,3040.0,3039.9,0.001]
[1765000771069,9.23657811,3040.0,3039.9,0.001]
[1765000778279,7.23657811,3040.0,3039.9,0.001]
[1765000778501,9.23657811,3040.0,3039.9,0.001]
[1765000779182,8.75387811,3040.0,3039.9,0.001]
[1765000779393,8.67287811,3040.0,3039.9,0.4886]
[1765000779894,8.67287811,3040.0,3039.9,0.979]
[1765000780404,8.67287811,3040.0,3039.9,0.4886]
[1765000781494,8.67287811,3040.0,3039.9,0.001]
[1765000781804,8.67287811,3040.0,3039.9,0.4886]
[1765000784476,14.52248356,3040.0,3039.9,0.4886]
[1765000784683,14.52248356,3040.0,3039.9,0.001]
[1765000786604,14.63168356,3040.0,3039.9,0.001]
[1765000787310,15.09328356,3040.0,3039.9,0.001]
[1765000789380,14.63168356,3040.0,3039.9,0.001]
[1765000790807,15.09328356,3040.0,3039.9,0.001]
[1765000790976,14.63168356,3040.0,3039.9,0.001]
[1765000792910,15.09328356,3040.0,3039.9,0.001]
[1765000793509,14.63168356,3040.0,3039.9,0.001]
[1765000800624,15.09328356,3040.0,3039.9,0.001]
[1765000805029,2.60488257,3039.3,3039.2,0.001]
[1765000805324,9.78358213,3039.3,3039.2,0.001]
[1765000805708,10.26198213,3039.3,3039.2,0.001]
[1765000806028,13.68400892,3039.3,3039.2,0.001]
[1765000806399,14.08305251,3039.3,3039.2,0.001]
[1765000806600,15.90254256,3039.3,3039.2,0.001]
[1765000806818,17.87854256,3039.3,3039.2,0.001]
[1765000807044,3.33047668,3038.7,3038.5,0.001]
[1765000807196,10.60391533,3038.7,3038.5,0.001]
[1765000807396,12.24394018,3038.7,3038.5,0.001]
[1765000807606,12.64298377,3038.7,3038.5,0.001]
[1765000808027,15.93386473,3038.7,3038.5,0.001]
[1765000808201,16.06569454,3038.7,3038.5,0.001]
[1765000818452,15.58729454,3038.7,3038.5,0.001]
[1765000818762,15.18825095,3038.7,3038.5,0.001]
[1765000819060,15.64445095,3038.7,3038.5,0.001]
[1765000820139,14.58615095,3038.7,3038.5,0.001]
[1765000820346,15.56825095,3038.7,3038.5,0.001]
[1765000821742,1.13109811,3038.6,3038.0,0.001]
[1765000821950,3.42661577,3038.1,3038.0,0.001]
[1765000822138,4.67120988,3038.1,3038.0,0.4594]
[1765000822456,5.15570988,3038.1,3038.0,0.9439]
[1765000825527,8.44724077,3038.1,3038.0,0.4594]
[1765000825727,10.28824038,3038.1,3038.0,0.4594]
[1765000826531,10.28824038,3038.1,3038.0,0.9439]
[1765000833551,10.28824038,3038.1,3038.0,0.4594]
[1765000834664,10.28824038,3038.1,3038.0,0.001]
[1765000834867,10.28824038,3038.1,3038.0,0.4594]
[1765000835167,10.28824038,3038.1,3038.0,0.9439]
[1765000844454,16.14500864,3038.1,3038.0,0.9439]
[1765000846566,16.14500864,3038.1,3038.0,0.4594]
[1765000847787,16.14500864,3038.1,3038.0,0.9103]
[1765000858205,16.22040864,3038.1,3038.0,0.001]
[1765000859009,14.22040864,3038.1,3038.0,0.001]
[1765000859161,16.22040864,3038.1,3038.0,0.001]
[1765000859987,14.22040864,3038.1,3038.0,0.001]
[1765000860194,16.22040864,3038.1,3038.0,0.001]
[1765000860584,16.70780864,3038.1,3038.0,0.001]
[1765000862876,16.22040864,3038.1,3038.0,0.001]
[1765000863082,0.19937857,3037.4,3037.2,0.4865]
[1765000863282,6.57514683,3037.4,3037.2,0.4865]
[1765000863482,8.03081503,3037.4,3037.3,0.9688]
[1765000864228,11.32310448,3037.4,3037.3,0.9688]
[1765000864834,11.32310448,3037.4,3037.3,0.001]
[1765000865326,11.32310448,3037.4,3037.3,0.9688]
[1765000868374,10.59303039,3037.4,3037.3,0.9688]
[1765000873915,12.59303039,3037.4,3037.3,0.9688]
[1765000874119,10.59303039,3037.4,3037.3,0.9688]
[1765000876312,10.59303039,3037.4,3037.3,0.4823]
[1765000876313,12.99853439,3037.4,3037.3,0.4823]
[1765000876498,14.70997858,3037.4,3037.3,0.4823]
[1765000876701,15.67877858,3037.4,3037.3,0.4823]
[1765000879538,13.67877858,3037.4,3037.3,0.4823]
[1765000879693,15.67877858,3037.4,3037.3,0.4823]
[1765000880436,15.67877858,3037.4,3037.3,0.9442]
[1765000881963,15.67877858,3037.4,3037.3,0.4823]
[1765000882453,13.67877858,3037.4,3037.3,0.4823]
[1765000882659,15.67877858,3037.4,3037.3,0.4823]
[1765000889394,15.79227858,3037.4,3037.3,0.001]
[1765000889997,15.67877858,3037.4,3037.3,0.001]
[1765000890492,15.67877858,3037.4,3037.3,0.4586]
[1765000891672,13.67877858,3037.4,3037.3,0.4586]
[1765000891877,15.67877858,3037.4,3037.3,0.4586]
[1765000892675,13.67877858,3037.4,3037.3,0.4586]
[1765000892892,15.67877858,3037.4,3037.3,0.9205]
[1765000893787,15.79227858,3037.4,3037.3,0.001]
[1765000895785,13.79227858,3037.4,3037.3,0.001]
[1765000895978,15.79227858,3037.4,3037.3,0.001]
[1765000897389,15.67877858,3037.4,3037.3,0.4586]
[1765000897783,13.67877858,3037.4,3037.3,0.4586]
[1765000897987,15.67877858,3037.4,3037.3,0.4586]
[1765000903393,15.78777858,3037.4,3037.3,0.001]
[1765000906416,15.78997288,3037.4,3037.3,0.001]
[1765000907819,15.68097288,3037.4,3037.3,0.001]
[1765000908123,15.79347288,3037.4,3037.3,0.001]
[1765000909120,13.79347288,3037.4,3037.3,0.001]
[1765000909305,15.79347288,3037.4,3037.3,0.001]
[1765000912219,13.79347288,3037.4,3037.3,0.001]
[1765000912400,15.79347288,3037.4,3037.3,0.001]
[1765000912716,15.68097288,3037.4,3037.3,0.001]
[1765000913916,15.79347288,3037.4,3037.3,0.001]
[1765000919022,16.24617288,3037.4,3037.3,0.001]
[1765000920318,16.64521647,3037.4,3037.3,0.001]
[1765000924825,16.64521647,3037.4,3036.0,0.6894]
[1765000924826,0.60488257,3036.1,3036.0,0.6894]
[1765000925128,1.84947668,3036.1,3036.0,0.6894]
[1765000925294,1.84947668,3036.1,3036.0,1.1621]
[1765000925490,2.45435925,3036.1,3036.0,1.1621]
[1765000925716,5.7480584,3036.1,3036.0,1.1621]
[1765000927120,11.60702096,3036.1,3036.0,1.1621]
[1765000927431,15.17925459,3036.1,3036.0,1.1621]
[1765000928229,13.17925459,3036.1,3036.0,1.1621]
[1765000928532,15.17925459,3036.1,3036.0,1.1621]
[1765000929224,13.17925459,3036.1,3036.0,1.1621]
[1765000929417,15.17925459,3036.1,3036.0,1.1621]
[1765000936264,15.17925459,3036.1,3036.0,1.1631]
[1765000937457,13.17925459,3036.1,3036.0,1.1631]
[1765000937660,15.17925459,3036.1,3036.0,1.1631]
[1765000939237,15.17925459,3036.1,3036.0,0.4737]
[1765000941870,15.17925459,3036.1,3036.0,0.9734]
[1765000944584,13.17925459,3036.1,3036.0,0.9734]
[1765000944786,15.17925459,3036.1,3036.0,0.9734]
[1765000945765,4.8235544,3036.1,3036.0,0.9734]
[1765000949584,1.42985525,3036.1,3036.0,0.9734]
[1765000949770,0.8217332,3036.4,3036.0,0.9734]
[1765000949972,1.89451177,3036.4,3036.3,0.6575]
[1765000950371,1.89451177,3036.4,3036.3,1.1572]
[1765000950573,5.1878855,3036.4,3036.3,1.1572]
[1765000950788,5.91347961,3036.4,3036.3,1.1572]
[1765000951371,6.01347961,3036.4,3036.3,1.1572]
[1765000951574,6.01347961,3036.4,3036.3,0.6575]
[1765000951789,6.01347961,3036.4,3036.3,1.1572]
[1765000952593,6.41898361,3036.4,3036.3,1.1572]
[1765000952971,6.01347961,3036.4,3036.3,1.1572]
[1765000957607,6.01347961,3036.4,3036.3,0.4624]
[1765000958312,7.76134799,3036.4,3036.3,0.4624]
[1765000958812,9.76134799,3036.4,3036.3,0.4624]
[1765000959113,0.19937857,3036.1,3036.0,0.1961]
[1765000959289,0.19937857,3036.1,3036.0,0.6717]
[1765000959493,0.19937857,3036.1,3036.0,1.1497]
[1765000959796,1.18866297,3036.1,3036.0,1.1497]
[1765000960315,5.20795623,3036.1,3036.0,1.1497]
[1765000960616,6.26474303,3036.1,3036.0,0.479]
[1765000961513,6.26474303,3036.1,3036.0,0.9546]
[1765000961886,5.20795623,3036.1,3036.0,0.9546]
[1765000963112,4.48236212,3036.1,3036.0,0.9546]
[1765000963302,0.09937857,3036.1,3036.0,0.9546]
[1765000963504,1.64670588,3036.2,3036.0,0.9546]
[1765000963798,2.60130588,3036.2,3036.1,1.1405]
[1765000964218,5.89489655,3036.2,3036.1,1.1405]
[1765000965803,4.97378478,3036.2,3036.1,1.1405]
[1765000965996,1.77957268,3036.2,3036.1,1.1405]
[1765000966197,2.60130588,3036.2,3036.1,1.1405]
[1765000967117,0.09937857,3036.5,3036.1,1.1405]
[1765000967411,0.09937857,3036.5,3036.4,0.478]
[1765000967798,0.09937857,3036.5,3036.4,0.9536]
[1765000971095,0.002,3036.6,3036.4,0.9536]
[1765000971290,0.002,3036.6,3036.5,1.3619072]
[1765000981562,0.002,3036.6,3036.5,0.9372]
[1765000983632,0.002,3036.6,3036.5,4.23046527]
[1765000984331,0.002,3036.6,3036.5,4.26339792]
[1765000984671,0.002,3036.6,3036.5,5.05219847]
[1765000984878,0.002,3036.6,3036.5,5.77779258]
[1765000985072,0.002,3036.6,3036.5,7.68243245]
[1765000985865,0.002,3036.6,3036.5,6.86069925]
[1765000990481,0.002,3036.6,3036.5,6.86169925]
[1765000991149,0.002,3036.6,3036.5,7.68343245]
[1765000994178,0.002,3036.6,3036.5,8.20243245]
[1765001013774,0.002,3036.6,3036.5,14.06145164]
[1765001019512,0.002,3036.6,3036.5,13.23971844]
[1765001020518,0.5685,3036.6,3036.5,0.52]
[1765001021802,0.1098,3036.6,3036.5,0.52]
[1765001023811,0.5685,3036.6,3036.5,0.52]
[1765001025311,0.1098,3036.6,3036.5,0.52]
[1765001027592,0.5685,3036.6,3036.5,0.52]
[1765001028622,0.66787857,3036.6,3036.5,0.001]
[1765001031101,0.5685,3036.6,3036.5,0.001]
[1765001032894,0.66787857,3036.6,3036.5,0.001]
[1765001039232,3.96103539,3036.6,3036.5,0.001]
[1765001039406,4.44931225,3036.6,3036.5,0.001]
[1765001039607,1.25615543,3036.6,3036.5,0.001]
[1765001039819,4.54931225,3036.6,3036.5,0.001]
[1765001040652,5.27490636,3036.6,3036.5,0.001]
[1765001040851,11.13324802,3036.6,3036.5,0.001]
[1765001041142,11.65224802,3036.6,3036.5,0.001]
[1765001042210,5.79390636,3036.6,3036.5,0.001]
[1765001042538,0.20917857,3036.6,3036.5,0.001]
[1765001047052,0.10137857,3036.6,3036.5,0.493]
[1765001047245,0.002,3036.6,3036.5,0.493]
[1765001055925,0.0826,3036.6,3036.5,0.001]
[1765001057058,0.66757857,3036.6,3036.5,0.001]
[1765001057967,0.76757857,3036.6,3036.5,0.001]
[1765001058140,5.34711519,3036.6,3036.5,0.001]
[1765001058743,2.05395837,3036.6,3036.5,0.001]
[1765001059756,0.80819411,3036.6,3036.5,0.001]
[1765001059960,0.002,3036.6,3036.5,0.4876]
[1765001061434,0.002,3036.6,3036.5,0.9818]
[1765001068257,0.002,3036.6,3036.5,0.4876]
[1765001068465,0.002,3036.6,3036.5,0.9818]
[1765001068766,0.002,3036.6,3036.5,1.46132484]
[1765001068992,0.002,3036.6,3036.5,4.75459011]
[1765001073177,0.002,3036.6,3036.5,5.74339518]
[1765001078086,0.002,3036.6,3036.5,6.26239518]
[1765001084463,0.002,3036.6,3036.5,5.74339518]
[1765001084667,0.002,3036.6,3036.5,6.26239518]
[1765001086288,0.002,3036.6,3036.5,5.74339518]
[1765001086584,0.0595,3036.6,3036.5,5.28159518]
[1765001089592,0.0595,3036.6,3036.5,4.29279011]
[1765001095394,0.002,3036.6,3036.5,5.28189011]
[1765001098403,0.002,3036.6,3036.5,4.78709011]
[1765001105980,0.002,3036.6,3036.5,4.76289011]
[1765001106210,0.5549,3036.6,3036.5,0.001]
[1765001106399,0.5549,3036.6,3036.5,0.52]
[1765001106781,0.5549,3036.6,3036.5,0.001]
[1765001109509,0.0893,3036.6,3036.5,0.001]
[1765001109704,4.47778272,3036.6,3036.5,0.001]
[1765001110427,10.33511518,3036.6,3036.5,0.001]